Cogmind - Beta 16.1 @@@ ROGUE MODE // 2026.02.14 @ 20:38:40 Player: Skergy Result: Destroyed by C2-QTL(R) with Subdweller Machine Gun Performance ------------- Evolutions (0) 0 Regions Visited (2) 400 Robots Destroyed (29) 145 Value Destroyed (829) 829 Prototype IDs (4) 80 Alien Tech Used (0) 0 Bonus (0) 0 TOTAL SCORE: 1454 Bonus ------- None Cogmind --------- Core Integrity 0/250 Matter 300/300 Energy 59/100 System Corruption 4% Temperature Cool (0) Movement Rolling (150) Ox4 Location -10/Subcaves Parts ------- > --- POWER (1) -------- (None) > --- PROPULSION (2) --- Makeshift Leg Subdweller Monowheel > --- UTILITY (2) ------ Huge Storage Unit Makeshift Kinetic Plating > --- WEAPON (2) ------- Subdweller Laser > --- INVENTORY (25) --- Subdweller Power Source Subdweller Power Source Light Nuclear Core Makeshift Power Source Spiked Treads Aluminum Leg Subdweller Monowheel Subdweller Monowheel Medium Matter Pod (100) Medium Matter Pod (100) Medium Matter Pod (100) Subdweller Optics Subdweller Optics Scrap Shield Tractor Beam Medium Laser Battle Rifle Battle Rifle Battle Rifle Subdweller Machine Gun Subdweller Machine Gun Grenade Launcher Mining Laser Multitool Peak State ------------ > --- POWER ------------ (None) > --- PROPULSION ------- Makeshift Leg Subdweller Monowheel > --- UTILITY ---------- Huge Storage Unit Makeshift Kinetic Plating > --- WEAPON ----------- Subdweller Laser Beam Cannon > --- INVENTORY -------- Subdweller Power Source Subdweller Power Source Light Nuclear Core Makeshift Power Source Spiked Treads Aluminum Leg Subdweller Monowheel Medium Matter Pod Medium Matter Pod Medium Matter Pod Subdweller Optics Subdweller Optics Scrap Shield Tractor Beam Medium Laser Battle Rifle Battle Rifle Battle Rifle Battle Rifle Grenade Launcher Mining Laser Multitool [Rating: 18] Favorites ----------- Power Ion Engine Engine Ion Engine Propulsion Light Treads Treads Light Treads Leg Aluminum Leg Wheel Wheel Utility Huge Storage Unit Device Seismic Detector Storage Huge Storage Unit Protection Makeshift Kinetic Plating Weapon Beam Cannon Energy Gun Medium Laser Energy Cannon Beam Cannon Ballistic Gun Assault Rifle Launcher Grenade Launcher Special Weapon Mining Laser Slashing Weapon Mining Claw Build | -11 -10 -10 ------- Run | Yrd Mat Sub Slots Evolved . | . . . Power . | . . . Propulsion . | . . . Utility . | . . . Weapon . | . . . Parts Attached 23 | 8 6 9 Power 2 | 2 . . Engine 2 | 2 . . Core . | . . . Reactor . | . . . Propulsion 8 | 2 2 4 Treads 2 | 2 . . Leg 2 | . 1 1 Wheel 4 | . 1 3 Hover . | . . . Flight . | . . . Utility 5 | 2 1 2 Device 2 | 1 . 1 Storage 2 | 1 1 . Processor . | . . . Hackware . | . . . Protection 1 | . . 1 Artifact . | . . . Weapon 8 | 2 3 3 Energy Gun 3 | 1 1 1 Energy Cannon 1 | . 1 . Ballistic Gun 1 | 1 . . Ballistic Cannon . | . . . Launcher 1 | . . 1 Special Weapon 1 | . . 1 Impact Weapon . | . . . Slashing Weapon 1 | . 1 . Piercing Weapon . | . . . Special Melee Weapon . | . . . Unidentified Prototypes . | . . . Parts Lost 11 | . 5 6 Power 2 | . 1 1 Propulsion 4 | . 2 2 Utility 1 | . . 1 Weapon 4 | . 2 2 Highest Loss Streak 3 | . 3 2 To Critical Strikes . | . . . Average Backups 12 | 3 7 17 Power 1 | . . 2 Propulsion 2 | 1 1 3 Utility 4 | . 2 5 Weapon 3 | . 2 4 Tool/Special . | . . . Unused Backups 24 | . 2 22 Power 5 | . . 5 Propulsion 3 | . . 3 Utility 7 | . 1 6 Weapon 8 | . 1 7 Tool/Special 1 | . . 1 Average Slot Usage (%) 94 | . 92 95 Engine 12 | . 12 12 Treads 7 | . 17 . Leg 8 | . . 14 Wheel 10 | . 5 13 Device 7 | . 14 3 Storage 14 | . 14 14 Protection 5 | . . 8 Energy Gun 8 | . 12 6 Energy Cannon 8 | . 1 13 Ballistic Gun 3 | . 8 . Special Weapon 4 | . . 6 Slashing Weapon 1 | . 4 . Peak Build Rating 18 | 7 8 18 Average Rating 9 | 5 6 12 On Entrance 5 | . 7 8 Avg Prop Armor Cover (%) 8 | . 9 8 Naked Turns . | . . . Heaviest Build 99 | 13 91 99 Greatest Support 40 | 40 40 30 Greatest Overweight (x) 9 | . 9 9 Average Overweight (x) 3 | . . 5 Largest Inventory Capacity 25 | 8 25 25 Average Capacity 17 | 7 8 25 Most Carried 25 | 5 10 25 Average Carried 13 | 3 7 18 Final Capacity 25 | 8 25 25 Final Carried 25 | 5 10 25 Class Distribution -------------------- 100% | Mutant Dominant Class ---------------- Mutant | -10/Materials Mutant | -10/Subcaves Resources | -11 -10 -10 ----------- Run | Yrd Mat Sub Matter Collected 950 | 319 358 273 Remotely . | . . . Salvage Created 981 | 156 521 304 Parts 70 | 17 33 20 Haulers Intercepted . | . . . Recyclers Shooed . | . . . Parts Field Recycled . | . . . Retrieved Matter . | . . . Parts Self-Destructed 6 | . . 6 Prevented . | . . . Parts Restored . | . . . Kills | -11 -10 -10 ------- Run | Yrd Mat Sub Combat Hostiles Destroyed 20 | . 12 8 Melee 10 | . 10 . Guns 4 | . 2 2 Cannons 3 | . . 3 AOE 3 | . . 3 Classes Destroyed 6 | 3 2 1 Worker 3 | 2 1 . Tunneler 3 | 3 . . Recycler 1 | 1 . . Watcher 2 | . 2 . Grunt 12 | . 12 . Subdweller 8 | . . 8 Best Kill Streak 4 | 4 3 4 Combat Bots Only 4 | . 2 4 Max Kills in Single Turn 1 | 1 1 1 Gunslinging . | . . . Exploded 1 | . . 1 Melee 1 | . 1 . Uniques/NPCs Destroyed . | . . . Combat | -11 -10 -10 -------- Run | Yrd Mat Sub Hostile Shots Fired 124 | . 85 39 Missed 34 | . 20 14 Hits 90 | . 65 25 Projectile 90 | . 65 25 AOE 3 | . . 3 Critical Strikes 2 | . 1 1 Damage Taken 1446 | . 795 651 Core 255 | . 138 117 Absorbed by Shields . | . . . Ignored by Resistances 37 | . . 37 Core Remaining (%) 100 | 100 . . Volleys Fired 102 | 25 10 67 Largest 2 | 2 2 2 Hottest 160 | 70 115 160 Shots Fired 142 | 38 18 86 Gun 72 | 38 18 16 Cannon 33 | . . 33 Launcher 6 | . . 6 Special 31 | . . 31 Kinetic 15 | 13 2 . Thermal 121 | 25 16 80 Explosive 6 | . . 6 Electromagnetic . | . . . Robot Hit Streak 9 | 5 5 9 Robot Miss Streak 3 | 3 2 3 Penetration Max . | . . . Secondary Targets . | . . . Shots Hit Robots 102 | 23 40 39 Core Hits 43 | 7 19 17 Critical Kills . | . . . Critical Parts Destroyed . | . . . Critical Strikes 4 | 3 1 . Burn 4 | 3 1 . Melee Attacks 40 | . 40 . Impact . | . . . Slashing 40 | . 40 . Piercing . | . . . Sneak Attacks 3 | . 3 . Combat Hostiles 2 | . 2 . Follow-up Attacks . | . . . Damage Inflicted 2201 | 311 913 977 Guns 681 | 311 166 204 Cannons 405 | . . 405 Explosions 368 | . . 368 Melee 747 | . 747 . Ramming . | . . . Kinetic 82 | 72 10 . Thermal 1004 | 239 156 609 Explosive 368 | . . 368 Electromagnetic . | . . . Impact . | . . . Slashing 747 | . 747 . Piercing . | . . . Highest Corruption 4 | . 4 4 Average Corruption 3 | . 3 4 Corruption Purged . | . . . Corruption Blocked . | . . . Effects 44 | . 5 39 Message Errors 15 | . 2 13 Matter Fused 11 | . 1 10 Heat Flow Errors 4 | . 1 3 Energy Discharges 7 | . 1 6 Data Loss (minor) 1 | . . 1 Misfires 3 | . . 3 Alerts 3 | . . 3 Overload Shots . | . . . Overflow Damage 13 | . 10 3 Projectiles . | . . . Explosions 3 | . . 3 Melee 10 | . 10 . Knockbacks . | . . . Impact . | . . . Kinetic . | . . . Secondary . | . . . Self-Inflicted Damage 88 | . . 88 Shots 5 | . . 5 Rammed . | . . . Targets Rammed . | . . . Kicked . | . . . Crushed . | . . . Highest Temperature 269 | 45 190 269 Average Temperature 52 | 16 74 79 Received Heat Transfer 558 | . 468 90 Siege Activations . | . . . Martial Activations . | . . . Shielding Activations . | . . . Robots Disrupted . | . . . Combat Hostiles . | . . . Robots Corrupted . | . . . Combat Hostiles . | . . . Parts Fried . | . . . Impact Corruptions . | . . . Robots Melted . | . . . Combat Hostiles . | . . . Parts Melted 4 | 1 1 2 Heat Transferred 2507 | 925 481 1101 Parts Sabotaged . | . . . Parts Stolen . | . . . Parts Stripped . | . . . Power Chain Reactions . | . . . Alert | -11 -10 -10 ------- Run | Yrd Mat Sub Maximum Alert Level . | . . . Low Security (%) 100 | 100 100 . Level 1 . | . . . Level 2 . | . . . Level 3 . | . . . Level 4 . | . . . Level 5 . | . . . High Security . | . . . Max Security . | . . . Peak Influence 98 | 10 98 . Initial . | . . . Average 25 | 1 30 . Influence Increases 388 | 30 358 . Destroy 0b10 Robot/C 240 | . 240 . Destroy 0b10 Robot/NC 45 | 30 15 . Destroy Leader 64 | . 64 . Successful Hack 38 | . 38 . Destroy Structure 1 | . 1 . Influence Decreases 388 | 30 358 . Time Decay 296 | 30 266 . Lost Part 20 | . 20 . Purge Threat 72 | . 72 . Squads Dispatched 3 | . 3 . Investigation 1 | . 1 . Extermination . | . . . Reinforcement 2 | . 2 . Assault . | . . . Garrison . | . . . Intercept . | . . . Searches Triggered . | . . . Construction Impeded . | . . . Haulers Reinforced . | . . . Active Scanning Responses . | . . . Cargo Convoy Interrupts . | . . . Stealth | -11 -10 -10 --------- Run | Yrd Mat Sub Distress Signals 1 | . 1 . Communications Jammed . | . . . Distress Signals . | . . . Times Spotted 27 | . 16 11 Peak Tracking Total 3 | . 3 2 Tactical Retreats . | . . . Traps | -11 -10 -10 ------- Run | Yrd Mat Sub Traps Triggered 4 | . 4 . Indirectly . | . . . Trap Hack Attempts . | . . . Triggered . | . . . Disarmed . | . . . Reprogrammed 4 | . 4 . Reused . | . . . Traps Extracted . | . . . Installed . | . . . Triggered . | . . . Machines | -11 -10 -10 ---------- Run | Yrd Mat Sub Machines Disabled . | . . . Max in Single Turn . | . . . Machines Repaired . | . . . Machines Dismantled . | . . . Machines Sabotaged . | . . . Overloaded Fab Kills . | . . . Hacking | -11 -10 -10 --------- Run | Yrd Mat Sub Machines Accessed 10 | . 8 2 Terminals 6 | . 6 . Fabricators . | . . . Repair Stations . | . . . Recycling Units 2 | . 2 . Scanalyzers . | . . . Garrison Access . | . . . Total Hacks 35 | . 30 5 Successful 22 | . 17 5 Failed 13 | . 13 . Catastrophic 1 | . 1 . Database Lockouts . | . . . Manual 19 | . 19 . Terminals 23 | . 23 . Fabricators . | . . . Repair Stations . | . . . Recycling Units 7 | . 7 . Scanalyzers . | . . . Garrison Access . | . . . Terminal Hacks 11 | . 6 5 Record 4 | . . 4 Prototype ID Bank 2 | . 2 . Open Door 1 | . . 1 Unreport Threat 1 | . 1 . Locate Traps 1 | . 1 . Reprogram Traps 1 | . 1 . Zone Layout 1 | . 1 . Fabricator Hacks . | . . . Repair Station Hacks . | . . . Recycling Unit Hacks 3 | . 3 . Report Inventory 2 | . 2 . Retrieve Components 1 | . 1 . Scanalyzer . | . . . Garrison Access Hacks . | . . . Unauthorized Hacks 8 | . 8 . Terminals 6 | . 6 . Botnet 3 | . 3 . Disrupt 2 | . 2 . Operators 1 | . 1 . Fabricators . | . . . Repair Stations . | . . . Recycling Units 2 | . 2 . Recyclers 1 | . 1 . Mask 1 | . 1 . Scanalyzers . | . . . Garrison Access . | . . . Data Cores Recovered . | . . . Used . | . . . Hacking Detections 7 | . 7 . Full Trace Events . | . . . Feedback Events . | . . . Feedback Blocked . | . . . Robot Schematics Acquired . | . . . Robots Built . | . . . Authchips . | . . . Time . | . . . Total Robot Build Rating . | . . . Part Schematics Acquired . | . . . Parts Built . | . . . Authchips . | . . . Time . | . . . Total Part Build Rating . | . . . Part Studies Acquired . | . . . Parts Repaired . | . . . Time . | . . . Parts Recycled . | . . . Recycled Matter . | . . . Retrieved Matter . | . . . Retrieved Components 5 | . 5 . Parts Scanalyzed . | . . . Part Schematics Acquired . | . . . Parts Damaged . | . . . Bothacking | -11 -10 -10 ------------ Run | Yrd Mat Sub Used RIF Installer . | . . . Robots Hacked . | . . . Non-combat . | . . . Combat . | . . . Robot Hacks Applied . | . . . Relay Couplers Released . | . . . Fabnet Peak Effective % . | . . . Robots Rewired . | . . . Allies Hacked . | . . . Hacks Repelled . | . . . Allies | -11 -10 -10 -------- Run | Yrd Mat Sub Total Allies . | . . . Largest Group . | . . . Highest-Rated Group . | . . . Highest-Rated Ally . | . . . Total Orders . | . . . Ally Attacks . | . . . Total Damage . | . . . Kills . | . . . Allies Corrupted . | . . . Allies Melted . | . . . Intel | -11 -10 -10 ------- Run | Yrd Mat Sub Active Infowar (turns) 1858 | 119 1255 484 Optics 90 | . . 90 Seismic 1768 | 119 1255 394 Robot Analysis Total . | . . . Derelict Logs Recovered . | . . . Drone Launches . | . . . Drone Recoveries . | . . . Exploration | -11 -10 -10 ------------- Run | Yrd Mat Sub Turns Passed 3309 | 253 1255 1801 Spaces Moved 1728 | 112 743 873 Core 6 | 5 1 . Treads 459 | 107 352 . Legs 3 | . . 3 Wheels 1260 | . 390 870 Hover . | . . . Flight . | . . . Fastest Speed 50 | 50 95 150 Average Speed 154 | 155 130 175 Slowest Speed 340 | 160 215 340 Overloaded Moves . | . . . Propulsion Burnouts . | . . . Robots Hopped . | . . . Potential Cave-ins 2 | . . 2 Cave-ins Triggered . | . . . Exploration Rate (%) 54 | 5 93 65 Regions Visited 2 Branch Regions 1 Pre-discovered Areas . | . . . Known Exits Taken . | . . . Unknown Exits Taken 2 | 1 1 . Scrap Searched . | . . . Spaces Dug 1 | . . 1 Terrain Destroyed 33 | . . 33 Melee . | . . . Projectile 2 | . . 2 AOE 31 | . . 31 Terrain Rammed . | . . . Walls Destroyed . | . . . Machines Disabled . | . . . Actions | -11 -10 -10 --------- Run | Yrd Mat Sub Total 2076 | 149 928 999 Wait 135 | . 114 21 Move 1726 | 111 742 873 Hop . | . . . Pick Up 35 | 5 10 20 Fast Attach 11 | 7 3 1 Attach 8 | . 3 5 Detach 1 | . . 1 Swap 11 | 1 2 8 Drop 7 | . 4 3 Fire 102 | 25 10 67 Melee 40 | . 40 . Ram . | . . . Kick . | . . . Crush . | . . . Escape Stasis . | . . . Rewire . | . . . Trap . | . . . Miscellaneous . | . . . Route ------- -11/Scrapyard -10/Materials (discovered 5 exits: [*Mat x3] / [*Min] / *Sub) -10/Subcaves (discovered 2 exits: [*Mat] / [*Scr]) History --------- Turn | Location | Event 2 | -11/Scrapyard | Met Revision 17 32 | -11/Scrapyard | Discovered new exit (range 16) 254 | -11/Scrapyard | Entered Materials 312 | -10/Materials | Build established: Mutant 428 | -10/Materials | Discovered new exit (range 10) 952 | -10/Materials | Discovered new exit (range 15) 1061 | -10/Materials | Lost 3 parts (2n1w) 1072 | -10/Materials | Core integrity fell below 50% 1137 | -10/Materials | Discovered new exit (range 8) 1184 | -10/Materials | Discovered new exit (range 9) 1217 | -10/Materials | Discovered new exit (range 7) 1509 | -10/Materials | Entered Subcaves 1510 | -10/Subcaves | Approached by a straggling Scientist 1566 | -10/Subcaves | Shifting Twisted Machinery released Flamer 1573 | -10/Subcaves | Shifting Twisted Machinery released Sub. Monowheel 1915 | -10/Subcaves | Ambushed by Subdweller buried in earth 2043 | -10/Subcaves | A swath of the cavern ceiling suddenly collapsed 2327 | -10/Subcaves | Shifting Twisted Machinery released Battle Rifle 2347 | -10/Subcaves | Shifting Twisted Machinery released Spk. Treads 2485 | -10/Subcaves | Visited Clippyterm 2490 | -10/Subcaves | Learned Factory trap positions 2490 | -10/Subcaves | Learned Factory garrison access intel 2677 | -10/Subcaves | Discovered new exit (range 14) 2719 | -10/Subcaves | Shifting Twisted Machinery released Battle Rifle 2720 | -10/Subcaves | Shifting Twisted Machinery released Battle Rifle 3092 | -10/Subcaves | Core integrity fell below 20% 3309 | -10/Subcaves | Ambushed by Subdweller buried in earth 3310 | -10/Subcaves | Destroyed by C2-QTL(R) with Subdweller Machine Gun Last Messages --------------- 03089_ Com. Wheel destroyed. 03090_ SV-O9H(R) destroyed. 03099_ 2C-3V2(R) destroyed. 03107_ Subatomizers dissect the Sub. Monowheel. 03113_ Dropped Aluminum Leg. 03113_ Acquired Sub. Monowheel. 03115_ Acquired 39 matter. 03118_ Acquired Sub. Monowheel. 03122_ Subatomizers dissect the Sub. Machine Gun. 03122_ Acquired Sub. Machine Gun. 03126_ Dropped Battle Rifle. 03126_ Acquired Sub. Machine Gun. 03129_ Dropped Sub. Power Source. 03129_ Acquired Sub. Power Source. 03129_ Acquired 30 matter. 03210_ System corrupted: Matter fused (-5). 03260_ GJZIBS5=1HOFXKYYUDJA68U=CL&D 03280_ System corrupted: Heat flow error (+108). 03307_ Beam Cannon destroyed. 03310_ C2-QTL(R): "ARGHSUB!" Map ----- +----------------------------------------------------+ | ?????????????????????????????????????????# ## | | ?????????????????????????????????????????# # | | ?????????????????????????????????????????## # # | | ??????????????????????????????????????????## | | ???????????????????????????????????????????# | | ??????????????????????????????????########## # | | ??????????????????????????????????# | | ????????????????????????????????????????## | | ?????????????????????????????????????????# | | ?????????????????????????????????????????# ### | | ??????????????????????????????????#??????# ##?## | | ??????????????????????????????????# ???### #???# | | ??????????????????????????????????# #### #??### | | ??????????????????????????????????# ## #?? ## | | ???????????????????????##?????????### ### # | | ???????????????????????? # ?????????## ## | | ???????????????????????$& ??????????## | | ????????????????????????< ##??????????## | | ??????????????????????### ????????????# | | ??????????????????????# # ####????????## | | ????????????????????### < < #####???## | | ????????????????????#;; # #### # | | ????????????????????#; R;;; ## ## # | | ????????????????##### # ###?### | | ?????????# # ## #?????? | | ??????? @ # # ##????? | | ??????? $ ### ####?? | | ?????????? ## # ## # ## #?? | | ??????????????##??#; ##### ### ## #?? | | ??????????????????## #???####?###########?? | | ???????????????????## R #????????????????????? | | ????????????????????## #????????????????????? | | ?????????????????????### ##????????????????????? | | ???????????????????????#####?????????????????????? | | ?????????????????????????????????????????????????? | | ?????????????????????????????????????????????????? | | ?????????????????????????????????????????????????? | | ?????????????????????????????????????????????????? | | ?????????????????????????????????????????????????? | | ?????????????????????????????????????????????????? | | ?????????????????????????????????????????????????? | | ?????????????????????????????????????????????????? | | ?????????????????????????????????????????????????? | | ?????????????????????????????????????????????????? | | | | | | | | | | | | | +----------------------------------------------------+ Best States ------------- Heat Dissipation 25 Energy Generation 10 Energy Capacity 250 Matter Stores 300 Matter Capacity 300 Sight Range 21 Terrain Scan Density 10 Armor Coverage 100 Resistance: KI 10 Evasion (%) 41 Recoil Reduction 2 Item Schematics ----------------- None Robot Schematics ------------------ None Fabricated ------------ Nothing Repaired ---------- Nothing Studied --------- None Alien Tech Used ----------------- None Achievements -------------- None Challenges ------------ None Game ------ Seed CoolingAmuletRay Manual? 0 Play Time 00:25:27 Cumulative 126.8 hours Start 2026.02.14 @ 20:15:56 End 2026.02.14 @ 20:38:40 Sessions 1 Manual Loads 0 Difficulty Rogue Special Mode None Game No. 137 Rogue 137 Adventurer 0 Explorer 0 Win Type - Total 4 Types 4/0/0/0/0/0/0/0/0/0 Lore% 68 Gallery% 52 Achievement% 41 Wizard Run 0 Options --------- Layout 0 ASCII 0 Keyboard 1 Movement Vi Keybinds 0 Fullscreen 1 Font 24/Terminus Map View 76x50 Zoom Use 0% Tactical HUD 1 Map Filters NONE Filters NONE Steam 1 RUN: ec43f9d5-fd2d-42ff-9a54-3af8643fa5af